[Event "Memorial Ukrainian Chess Warriors 2024"]
[Site "Lviv"]
[Date "2024.03.15"]
[Round "4.25"]
[White "Ivanov, Vladimir A."]
[Black "Piddubna, Bozhena"]
[Result "0-1"]
[ECO "C21"]
[WhiteElo "1887"]
[BlackElo "2132"]
[Annotator "RC"]
[PlyCount "88"]
[EventDate "2024.03.06"]
[EventType "swiss"]
[EventCountry "UKR"]
[SourceTitle "playchess.com"]
[Source "ChessBase"]
[SourceQuality "1"]
[TimeControl "600+5"]

1. e4 {[%emt 0:00:02]} e5 {[%emt 0:00:00]} 2. d4 {[%emt 0:00:09]} exd4 {[%emt 0:00:02]} 3. c3 {[%emt 0:00:00]} d5 {[%emt 0:00:26]} 4. e5 {[%emt 0:00:22]} dxc3 {[%emt 0:00:12]} 5. Nxc3 {[%emt 0:00:02]} d4 {[%emt 0:00:39]} 6. Nce2 {[%emt 0:02:22]} c5 {[%emt 0:00:39]} 7. Nf4 {[%emt 0:00:29]} Nc6 {[%emt 0:00:10]} 8. Nf3 {[%emt 0:00:04]} Nge7 {[%emt 0:04:07]} 9. Bc4 {[%emt 0:00:26]} Na5 {[%emt 0:00:01]} 10. Bb5+ {[%emt 0:01:19]} Bd7 {[%emt 0:00:28]} 11. Qe2 {[%emt 0:00:21]} Bxb5 {[%emt 0:02:29]} 12. Qxb5+ {[%emt 0:00:03]} Nec6 {[%emt 0:00:01]} 13. O-O {[%emt 0:00:23]} Be7 {[%emt 0:00:17]} 14. e6 {[%emt 0:00:28]} O-O {[%emt 0:00:09]} 15. Re1 {[%emt 0:00:14]} Qb6 {[%emt 0:00:45]} 16. Qe2 {[%emt 0:00:11]} Rad8 {[%emt 0:00:11]} 17. Nh5 {[%emt 0:00:39]} d3 {[%emt 0:00:22]} 18. Qe4 {[%emt 0:00:20]} Qb4 {[%emt 0:00:00]} 19. Qf5 {[%emt 0:00:28]} Nd4 {[%emt 0:00:20]} 20. Qe5 {[%emt 0:00:17]} f6 {[%emt 0:00:08]} 21. Qe3 {[%emt 0:00:26]} Nxf3+ {[%emt 0:00:10]} 22. gxf3 {[%emt 0:00:06]} d2 {[%emt 0:00:01]} 23. Bxd2 {[%emt 0:00:21]} Qxd2 {[%emt 0:00:01]} 24. Qe4 {[%emt 0:00:03]} Qg5+ {[%emt 0:00:05]} 25. Ng3 {[%emt 0:00:02]} Rd4 {[%emt 0:00:02]} 26. Qe2 {[%emt 0:00:24]} Nc6 {[%emt 0:00:03]} 27. Rad1 {[%emt 0:00:18]} Rfd8 {[%emt 0:00:02]} 28. Kh1 {[%emt 0:00:16]} Qe5 {[%emt 0:00:20]} 29. Qc2 {[%emt 0:00:09]} Rxd1 {[%emt 0:00:02]} 30. Rxd1 {[%emt 0:00:02]} Rxd1+ {[%emt 0:00:02]} 31. Qxd1 {[%emt 0:00:01]} Qd4 {[%emt 0:00:00]} 32. Qe2 {[%emt 0:00:06]} Qd5 {[%emt 0:00:08]} 33. Kg2 {[%emt 0:00:03]} Nd4 {[%emt 0:00:02]} 34. Qd1 {[%emt 0:00:26]} Qxe6 {[%emt 0:00:06]} 35. b4 {[%emt 0:00:07]} b6 {[%emt 0:00:04]} 36. bxc5 {[%emt 0:00:02]} Bxc5 {[%emt 0:00:01]} 37. Ne4 {[%emt 0:00:11]} Qd5 38. Qd3 {[%emt 0:00:08]} h6 {[%emt 0:00:07]} 39. a4 {[%emt 0:00:05]} Qf7 {[%emt 0:00:08]} 40. Qd2 {[%emt 0:00:13]} Qg6+ {[%emt 0:00:02]} 41. Ng3 {[%emt 0:00:05]} Qg5 {[%emt 0:00:06]} 42. Qd3 {[%emt 0:00:06]} Qe5 {[%emt 0:00:10]} 43. Qg6 {[%emt 0:00:09]} Ne2 {[%emt 0:00:09]} 44. Ne4 {[%emt 0:00:23]} Nf4+ {[%emt 0:00:01]} 0-1

[Event "Memorial Ukrainian Chess Warriors 2024"]
[Site "Lviv"]
[Date "2024.03.15"]
[Round "4.26"]
[White "Molchanov, Roman"]
[Black "Pastukhov, Igor"]
[Result "1-0"]
[ECO "C54"]
[WhiteElo "1654"]
[BlackElo "2125"]
[Annotator "RC"]
[PlyCount "71"]
[EventDate "2024.03.06"]
[EventType "swiss"]
[EventCountry "UKR"]
[SourceTitle "playchess.com"]
[Source "ChessBase"]
[SourceQuality "1"]
[TimeControl "600+5"]

1. e4 {[%emt 0:00:02]} e5 {[%emt 0:00:02]} 2. Nf3 {[%emt 0:00:01]} Nc6 {[%emt 0:00:01]} 3. Bc4 {[%emt 0:00:01]} Bc5 {[%emt 0:00:02]} 4. c3 {[%emt 0:00:01]} Nf6 {[%emt 0:00:01]} 5. d3 {[%emt 0:00:01]} d6 {[%emt 0:00:05]} 6. Nbd2 {[%emt 0:00:01]} a5 {[%emt 0:00:20]} 7. O-O {[%emt 0:00:12]} O-O {[%emt 0:00:05]} 8. h3 {[%emt 0:00:02]} Ba7 {[%emt 0:00:23]} 9. Re1 {[%emt 0:00:06]} Ne7 {[%emt 0:00:09]} 10. Nf1 {[%emt 0:00:03]} Ng6 {[%emt 0:00:11]} 11. Ng3 {[%emt 0:00:05]} c6 {[%emt 0:00:21]} 12. d4 {[%emt 0:01:35]} exd4 {[%emt 0:01:04]} 13. cxd4 {[%emt 0:00:01]} d5 {[%emt 0:00:09]} 14. exd5 {[%emt 0:01:01]} Nxd5 {[%emt 0:00:40]} 15. Bg5 {[%emt 0:00:03]} f6 {[%emt 0:01:06]} 16. Bd2 {[%emt 0:00:26]} Kh8 {[%emt 0:00:42]} 17. h4 {[%emt 0:02:33]} Ngf4 {[%emt 0:01:01]} 18. Bxd5 {[%emt 0:00:54]} Nxd5 {[%emt 0:00:06]} 19. h5 {[%emt 0:00:05]} Bg4 {[%emt 0:00:22]} 20. h6 {[%emt 0:00:24]} g6 {[%emt 0:00:08]} 21. Be3 {[%emt 0:00:31]} Re8 {[%emt 0:00:30]} 22. Rc1 {[%emt 0:01:29]} Qd6 {[%emt 0:00:08]} 23. Ng5 {[%emt 0:01:24]} Qxg3 {[%emt 0:01:22]} 24. fxg3 {[%emt 0:00:47]} Bxd1 {[%emt 0:00:02]} 25. Nf7+ {[%emt 0:00:08]} Kg8 {[%emt 0:00:05]} 26. Nd6 {[%emt 0:00:04]} Rxe3 {[%emt 0:00:15]} 27. Rexd1 {[%emt 0:00:02]} Re2 {[%emt 0:00:07]} 28. Nxb7 {[%emt 0:00:13]} Rb8 {[%emt 0:00:13]} 29. Nxa5 {[%emt 0:00:06]} Rbxb2 {[%emt 0:00:10]} 30. Nc4 {[%emt 0:00:02]} Rxg2+ {[%emt 0:00:11]} 31. Kh1 {[%emt 0:00:01]} Rxa2 {[%emt 0:00:17]} 32. Ra1 {[%emt 0:00:01]} Kf7 {[%emt 0:00:40]} 33. Re1 {[%emt 0:00:09]} Bxd4 {[%emt 0:00:08]} 34. Rxa2 Rxa2 {[%emt 0:00:02]} 35. Nd6+ {[%emt 0:00:09]} Kf8 {[%emt 0:00:13]} 36. Re8# {[%emt 0:00:02]} 1-0

[Event "Memorial Ukrainian Chess Warriors 2024"]
[Site "Lviv"]
[Date "2024.03.15"]
[Round "4.27"]
[White "Medvedyk, Vasyl"]
[Black "Dankulynets, Yulia"]
[Result "1-0"]
[ECO "B20"]
[WhiteElo "1957"]
[BlackElo "1782"]
[Annotator "RC"]
[PlyCount "109"]
[EventDate "2024.03.06"]
[EventType "swiss"]
[EventCountry "UKR"]
[SourceTitle "playchess.com"]
[Source "ChessBase"]
[SourceQuality "1"]
[TimeControl "600+5"]

1. e4 {[%emt 0:00:02]} c5 {[%emt 0:00:01]} 2. a3 {[%emt 0:00:01]} d6 {[%emt 0:00:05]} 3. b4 {[%emt 0:00:04]} cxb4 {[%emt 0:00:51]} 4. axb4 {[%emt 0:00:05]} Nf6 {[%emt 0:00:14]} 5. Nc3 {[%emt 0:00:43]} g6 {[%emt 0:00:12]} 6. Rb1 {[%emt 0:00:34]} Bg7 {[%emt 0:00:03]} 7. Nge2 {[%emt 0:00:22]} O-O {[%emt 0:00:28]} 8. g3 {[%emt 0:00:07]} a6 {[%emt 0:00:24]} 9. Bg2 {[%emt 0:00:05]} Nc6 {[%emt 0:00:35]} 10. O-O {[%emt 0:00:20]} e5 {[%emt 0:00:02]} 11. d3 {[%emt 0:00:45]} Be6 {[%emt 0:00:34]} 12. Bg5 {[%emt 0:02:34]} h6 {[%emt 0:00:44]} 13. Bxf6 {[%emt 0:00:04]} Bxf6 {[%emt 0:00:02]} 14. b5 {[%emt 0:00:09]} Ne7 {[%emt 0:01:34]} 15. Nd5 {[%emt 0:01:43]} Bg7 {[%emt 0:02:29]} 16. Nxe7+ {[%emt 0:00:42]} Qxe7 {[%emt 0:00:02]} 17. c4 {[%emt 0:00:02]} f5 {[%emt 0:01:24]} 18. bxa6 {[%emt 0:00:28]} bxa6 {[%emt 0:00:27]} 19. exf5 {[%emt 0:00:04]} gxf5 {[%emt 0:00:10]} 20. Bxa8 {[%emt 0:00:44]} Rxa8 {[%emt 0:00:02]} 21. Qa4 {[%emt 0:00:10]} f4 {[%emt 0:00:42]} 22. Qc6 {[%emt 0:00:06]} Rc8 {[%emt 0:00:18]} 23. Qe4 {[%emt 0:00:33]} Qg5 {[%emt 0:00:21]} 24. Rb7 {[%emt 0:00:22]} Rf8 {[%emt 0:00:11]} 25. Rfb1 {[%emt 0:00:22]} fxg3 {[%emt 0:00:07]} 26. hxg3 {[%emt 0:00:24]} Qh5 {[%emt 0:00:03]} 27. Rb8 {[%emt 0:00:10]} Bf7 {[%emt 0:00:03]} 28. Rxf8+ {[%emt 0:00:02]} Bxf8 {[%emt 0:00:01]} 29. Nc3 {[%emt 0:00:15]} Qg5 {[%emt 0:00:04]} 30. Nd5 {[%emt 0:00:05]} Bg6 {[%emt 0:00:01]} 31. Qf3 {[%emt 0:00:04]} Bg7 {[%emt 0:00:02]} 32. Rb8+ {[%emt 0:00:08]} Kh7 {[%emt 0:00:01]} 33. Rb7 {[%emt 0:00:02]} Kg8 {[%emt 0:00:01]} 34. Ne7+ {[%emt 0:00:03]} Kh7 {[%emt 0:00:01]} 35. Nxg6 {[%emt 0:00:03]} Qxg6 {[%emt 0:00:01]} 36. Qe4 {[%emt 0:00:05]} Qxe4 {[%emt 0:00:03]} 37. dxe4 {[%emt 0:00:01]} Kg6 {[%emt 0:00:03]} 38. Rb6 {[%emt 0:00:04]} Bf8 {[%emt 0:00:02]} 39. Rxa6 {[%emt 0:00:01]} Kf7 {[%emt 0:00:02]} 40. Kg2 {[%emt 0:00:11]} Ke6 {[%emt 0:00:18]} 41. c5 {[%emt 0:00:17]} Kd7 {[%emt 0:00:06]} 42. c6+ {[%emt 0:00:04]} Kc7 {[%emt 0:00:03]} 43. Ra8 {[%emt 0:00:07]} Be7 {[%emt 0:00:10]} 44. Ra7+ {[%emt 0:00:01]} Kd8 {[%emt 0:00:01]} 45. Kf3 {[%emt 0:00:18]} Bg5 {[%emt 0:00:04]} 46. Kg4 {[%emt 0:00:03]} Bd2 {[%emt 0:00:15]} 47. f3 {[%emt 0:00:10]} Bb4 {[%emt 0:00:14]} 48. Kf5 {[%emt 0:00:04]} Bc5 {[%emt 0:00:04]} 49. Rd7+ {[%emt 0:00:02]} Kc8 {[%emt 0:00:01]} 50. Kg6 {[%emt 0:00:03]} Be3 {[%emt 0:00:05]} 51. Rxd6 {[%emt 0:00:03]} Kc7 {[%emt 0:00:00]} 52. Re6 {[%emt 0:00:01]} Bf2 {[%emt 0:00:06]} 53. g4 {[%emt 0:00:07]} Be3 {[%emt 0:00:08]} 54. Kf5 {[%emt 0:00:04]} Bd4 {[%emt 0:00:14]} 55. Rxe5 {[%emt 0:00:03]} 1-0

[Event "Memorial Ukrainian Chess Warriors 2024"]
[Site "Lviv"]
[Date "2024.03.15"]
[Round "5.1"]
[White "Mosesov, Danyil"]
[Black "Kravtsiv, Martyn"]
[Result "1-0"]
[ECO "A14"]
[WhiteElo "2453"]
[BlackElo "2598"]
[Annotator "TA"]
[PlyCount "68"]
[EventDate "2024.03.06"]
[EventType "swiss"]
[EventCountry "UKR"]
[SourceTitle "playchess.com"]
[Source "ChessBase"]
[SourceQuality "1"]
[TimeControl "600+5"]

{[%evp 12,68,-2,5,18,3,-2,12,46,49,46,49,50,35,78,81,93,71,71,74,104,114,185,176,167,151,246,251,203,191,183,173,174,165,205,221,283,272,402,391,679,683,712,709,847,856,858,855,923,896,907,916,958,896,1387,919,927,924,882]} 1. Nf3 {[%emt 0:00:02]} d5 {[%emt 0:00:06]} 2. c4 {[%emt 0:00:01]} e6 {[%emt 0:00:03]} 3. g3 {[%emt 0:00:01]} Nf6 {[%emt 0:00:02]} 4. Bg2 {[%emt 0:00:01]} Be7 {[%emt 0:00:36]} 5. O-O {[%emt 0:00:01]} O-O {[%emt 0:00:03]} 6. b3 {[%emt 0:00:01]} d4 {[%emt 0:00:09]} 7. e3 {[%emt 0:00:04]} c5 {[%emt 0:00:03]} 8. Ne5 {[%emt 0:01:07] Against Nc6} Qc7 {[%emt 0:00:52]} 9. f4 {[%emt 0:00:00]} Bd6 {[%emt 0:01:11] The position is equal.} 10. exd4 {[%emt 0:01:50]} cxd4 {[%emt 0:00:05][%cal Ob8c6]} 11. Na3 {[%emt 0:00:30]} a6 {[%emt 0:00:35][%cal Ob8c6] Repels Nb5} 12. Nd3 {[%emt 0:00:02]} Nbd7 {[%emt 0:00:52]} 13. Bb2 {[%emt 0:01:14]} e5 {[%emt 0:01:05] [#]} 14. c5 $1 {[%emt 0:01:07]} Nxc5 {[%emt 0:00:45]} 15. Nxe5 {[%emt 0:01:02]} Bxe5 {[%emt 0:02:37]} 16. fxe5 {[%emt 0:00:01]} Ng4 {[%emt 0:00:23]} (16... Bg4 $16 17. Qc2 Qxe5) 17. Rc1 $36 {[%emt 0:00:58][%mdl 2048] White is really pushing.} Qxe5 {[%emt 0:00:03]} 18. Nc4 {[%emt 0:00:21]} Qg5 {[%emt 0:00:05]} (18... Qh5 $16 19. h3 Nd3) 19. Ba3 {[%emt 0:00:53][%cal Bb2a3,Ba3d6,Bd6e5][%mdl 32]} (19. Bxd4 Rd8 20. Qf3 Be6 $16 (20... Rxd4 21. Qxf7+ Kh8 22. Qf8#) (20... Qh5 $2 21. h3 $18)) 19... Be6 {[%emt 0:00:54][%cal Oc5d3]} 20. Nb6 {[%emt 0:00:37]} Nd3 {[%emt 0:00:02]} 21. Nxa8 {[%emt 0:00:24]} Rxa8 22. Rc7 {[%emt 0:00:59]} (22. Bxb7 Qh5 23. h4 Rd8 $11) 22... Qa5 {[%emt 0:00:33] [#]} 23. Qc2 {[%emt 0:00:18][%cal Of1f7] Hoping for Rfxf7!} (23. Rxb7 Qxa3 $11) (23. Bxb7 Rd8 24. Rc6 (24. Qc2 Qh5 $15) 24... Ngf2 (24... Qxa3 25. Rxe6 fxe6 26. Qxg4 $16) 25. Rxf2 (25. Rxa6 $2 Qb5 $19) 25... Nxf2 26. Kxf2 Qxa3 27. Rxa6 Qc5 $11) 23... Nde5 {[%emt 0:00:39]} 24. Bd6 {[%emt 0:00:15][%cal Oc7c5] And now Rc5! would win. This pair of bishops is nice.} (24. Bxb7 $6 Re8 $18) 24... Rd8 {[%emt 0:00:08]} (24... d3 $142 25. Qc3 (25. Qc5 Qxd2 26. Rc1 Ng6 $17) 25... Qxc3 26. Rxc3 Nc6 27. Bxc6 (27. Rxd3 a5 $18) 27... bxc6 28. Rxc6 (28. Rxd3 h5 $18) 28... Nf6) 25. Rc5 Qb4 {[%emt 0:00:12]} (25... d3 26. Qc1 (26. Rxa5 dxc2 27. Bxe5 b6 $18) 26... Qb4 (26... Qb6 $2 27. Bc7 $18)) 26. Bxe5 {[%emt 0:00:09] White is clearly winning.} b6 {[%emt 0:00:03]} 27. Bc7 {[%emt 0:00:10]} Rc8 {[%emt 0:00:07] [#]} 28. Bxb6 $1 {[%emt 0:00:01]} Re8 {[%emt 0:00:02]} 29. Ba5 {[%emt 0:00:04]} Qb8 {[%emt 0:00:02]} 30. Rc7 {[%emt 0:00:06][%cal Bc5c7,Bc7b7,Bb7b4][%mdl 32]} h5 {[%emt 0:00:05]} 31. Qc6 {[%emt 0:00:06]} d3 {[%emt 0:00:04]} 32. Rb7 {[%emt 0:00:08]} Qa8 {[%emt 0:00:02]} 33. Rb4 {[%emt 0:00:07]} Qxc6 34. Bxc6 Rc8 {[%emt 0:00:00] White took control after the opening.   Weighted Error Value: White=0.04 (flawless) /Black=0.56.  Mistake:       	---       	Black=4      Inaccurate:     	---       	Black=3      OK:         	White=11    	Black=4} 1-0

[Event "Memorial Ukrainian Chess Warriors 2024"]
[Site "Lviv"]
[Date "2024.03.15"]
[Round "5.2"]
[White "Grinev, Valeriy"]
[Black "Dubnevych, Maksym"]
[Result "0-1"]
[ECO "D35"]
[WhiteElo "2422"]
[BlackElo "2293"]
[Annotator "TA"]
[PlyCount "66"]
[EventDate "2024.03.06"]
[EventType "swiss"]
[EventCountry "UKR"]
[SourceTitle "playchess.com"]
[Source "ChessBase"]
[SourceQuality "1"]
[TimeControl "600+5"]

{[%evp 12,66,14,20,24,25,47,44,65,23,31,18,37,28,29,20,18,15,30,33,37,25,26,0,0,-159,-191,-185,-196,-313,-312,-300,-242,-265,-260,-310,-241,-320,-309,-655,-630,-1291,-1259,-5381,-29963,-29960,-29958,-7284,-6696,-29979,-29980,-29980,-29981,-29981,-29982,-29977,-29978]} 1. d4 Nf6 2. c4 e6 3. Nc3 d5 4. cxd5 exd5 5. Bg5 c6 6. e3 h6 7. Bh4 a5 8. Bd3 Na6 {[%cal Bb8a6,Ba6c7,Bc7e6][%mdl 32]} 9. a3 Nc7 {White is slightly better.} 10. Nge2 Bd6 11. Qc2 O-O 12. h3 Ne6 13. O-O Re8 14. f3 {[%cal Bf2f3,Bf3f4][%mdl 32]} Ng5 15. f4 Nxh3+ 16. gxh3 Rxe3 17. Ng3 {Hoping for Rae1.} g5 18. Nd1 $2 {[#] Black continues to play with concentration.} (18. fxg5 $11 Bxg3 19. Nd1 Rxd3 20. Qxd3 Bxh4 21. gxf6) 18... Rxd3 $17 ({Resist} 18... gxh4 19. Nxe3 hxg3 20. Rf3 $11) 19. Qxd3 gxh4 20. Nf5 (20. Ne2 {might work better.}) 20... Bxf5 $19 21. Qxf5 Ne4 {aiming for ...Ng3.} 22. Ne3 Ng3 {[%csl LRf1,LRf5]} 23. Qg4+ Kh8 24. Nf5 Qf6 {Inhibits Qg7+.} 25. Nxd6 {[#]} (25. Qxh4 Qxf5 (25... Nxf5 $2 {too greedy.} 26. Qxf6+ Ng7 27. Qxh6+ Kg8 28. Qxd6 $18) (25... Qxh4 $2 26. Nxh4 Nxf1 27. Nf5 $19) 26. Qxh6+ Kg8 27. Qxd6 Nxf1 (27... Qxh3 $2 28. Qe7 $19) 28. Rxf1) 25... Rg8 26. Nxf7+ Qxf7 27. Qf3 Nxf1+ 28. Kxf1 {KQR-KQR} Rg3 29. Qf2 Qf5 30. Rd1 Qxh3+ {Black mates.} 31. Ke1 Rg2 32. Rd3 Qh1+ 33. Qf1 Rg1 {Weighted Error Value: White=0.93/Black=0.06 (flawless) .  Mistake:       	White=3     	---        Inaccurate:     	White=4     	---        OK:         	White=4     	Black=10     Best:        	---       	Black=3} 0-1

[Event "Memorial Ukrainian Chess Warriors 2024"]
[Site "Lviv"]
[Date "2024.03.15"]
[Round "5.3"]
[White "Alexikov, Alexander"]
[Black "Kislinsky, Alexey"]
[Result "0-1"]
[ECO "B51"]
[WhiteElo "2183"]
[BlackElo "2361"]
[Annotator "TA"]
[PlyCount "27"]
[EventDate "2024.03.06"]
[EventType "swiss"]
[EventCountry "UKR"]
[SourceTitle "playchess.com"]
[Source "ChessBase"]
[SourceQuality "1"]
[TimeControl "600+5"]

{[%evp 16,27,30,24,52,53,64,61,66,58,87,95,97,0]} 1. e4 {[%emt 0:00:01]} c5 {[%emt 0:00:03]} 2. Nf3 {[%emt 0:00:00]} d6 {[%emt 0:00:01]} 3. Bb5+ {[%emt 0:00:18]} Nc6 {[%emt 0:00:01]} 4. O-O {[%emt 0:00:06]} Bd7 {[%emt 0:00:02]} 5. c3 {[%emt 0:00:04]} Nf6 {[%emt 0:00:02]} 6. Re1 {[%emt 0:00:01]} a6 {[%emt 0:00:01]} 7. Ba4 {[%emt 0:00:03]} e5 {[%emt 0:00:18]} 8. h3 {[%emt 0:00:29]} b5 {[%emt 0:00:12]} 9. Bc2 {[%emt 0:00:00]} g5 {[%emt 0:00:14]} 10. d4 {[%emt 0:01:07]} g4 {[%emt 0:00:15]} 11. hxg4 {[%emt 0:00:01]} Nxg4 {[%emt 0:00:06]} 12. a4 {[%emt 0:00:39]} Rb8 {[%emt 0:00:30]} 13. axb5 {[%emt 0:00:02]} axb5 {[%emt 0:00:01]} 14. Ra6 {[%emt 0:00:50][%mdl 32768] Weighted Error Value: White=0.00 (flawless) /Black=0.22 (precise) .  Mistake:       	White=1     	---        Inaccurate:     	---       	Black=1      OK:         	White=3     	---       . Loss on time!?} ({White should play} 14. Bg5 $16 Be7 15. Bxe7 Qxe7 16. d5) 0-1

[Event "Memorial Ukrainian Chess Warriors 2024"]
[Site "Lviv"]
[Date "2024.03.15"]
[Round "5.4"]
[White "Sakun, Volodymyr"]
[Black "Mikhaletz, Lubomir"]
[Result "1/2-1/2"]
[ECO "B40"]
[WhiteElo "2301"]
[BlackElo "2278"]
[Annotator "TA"]
[PlyCount "70"]
[EventDate "2024.03.06"]
[EventType "swiss"]
[EventCountry "UKR"]
[SourceTitle "playchess.com"]
[Source "ChessBase"]
[SourceQuality "1"]
[TimeControl "600+5"]

{[%evp 16,70,14,22,14,0,4,19,22,0,21,18,17,10,13,10,12,8,25,-7,12,0,0,8,25,28,30,28,64,69,76,78,72,70,79,36,36,0,0,0,21,0,0,0,31,0,0,0,36,24,55,0,342,336,373,373,381]} 1. e4 {[%emt 0:00:01]} c5 {[%emt 0:00:02]} 2. Nf3 {[%emt 0:00:01]} e6 {[%emt 0:00:00]} 3. c3 {[%emt 0:00:00]} d5 {[%emt 0:00:02]} 4. exd5 {[%emt 0:00:18]} exd5 {[%emt 0:00:05]} 5. d4 {[%emt 0:00:24]} Nf6 6. Be2 Nc6 {[%emt 0:00:12]} 7. O-O {[%emt 0:00:10]} Be7 8. dxc5 {[%emt 0:00:21]} Bxc5 {[%emt 0:00:03]} 9. Bg5 {[%emt 0:00:06]} Be6 {[%emt 0:00:19]} 10. Nbd2 {[%emt 0:00:03]} O-O {[%emt 0:00:17]} 11. Nb3 {[%emt 0:00:02]} Bb6 {[%emt 0:00:37] The position is equal.} 12. Nfd4 {[%emt 0:00:15]} Re8 {[%emt 0:00:36]} 13. Bf3 {[%emt 0:00:28]} Rc8 {[%emt 0:00:22]} 14. Re1 {[%emt 0:00:09]} h6 {[%emt 0:00:29]} 15. Bh4 {[%emt 0:00:10]} g5 {[%emt 0:01:07]} 16. Bg3 {[%emt 0:00:02]} Qd7 {[%emt 0:01:09]} 17. h3 {[%emt 0:00:54]} (17. a4 {feels hotter.} Bg4 18. Rxe8+ Rxe8 19. Nxc6 bxc6 20. Bxg4 Nxg4 21. a5) 17... Ne4 {[%emt 0:00:30]} 18. Bxe4 {[%emt 0:00:05]} (18. Nxe6 {looks sharper.} Qxe6 19. c4 Qg6 20. c5) 18... dxe4 {[%emt 0:00:05]} 19. Rxe4 {[%emt 0:00:27] Black should prevent Nxe6.} Bxb3 {[%emt 0:00:09]} 20. Rxe8+ {[%emt 0:00:08]} Rxe8 21. Nxb3 {[%emt 0:00:00]} ({Reject} 21. axb3 Nxd4 22. Kh2 f5 $15) 21... Qxd1+ {[%emt 0:00:38]} 22. Rxd1 {[%emt 0:00:19]} f5 {[%emt 0:00:51][%cal Bf7f5,Bf5f4][%mdl 32]} 23. Kf1 {[%emt 0:00:05]} f4 {[%emt 0:00:05]} 24. Bh2 {[%emt 0:00:02]} Ne5 {[%emt 0:00:44]} 25. Nd4 {[%emt 0:00:46]} Rd8 {[%emt 0:00:34]} 26. Ke2 Re8 {[%emt 0:00:01]} 27. Kf1 {[%emt 0:02:23]} Rd8 $1 {[%emt 0:00:01]} 28. Ke2 {[%emt 0:01:33]} Re8 {[%emt 0:00:00]} 29. Kf1 {[%emt 0:00:08]} Rd8 $1 {[%emt 0:00:00]} 30. Ke2 {[%emt 0:00:05]} Re8 31. Kd2 Nc4+ 32. Kc2 {[%cal Oh3h4]} Bxd4 {[%emt 0:00:00]} 33. cxd4 ({White should try} 33. Rxd4 $14 Re2+ 34. Kd3 Rxf2 35. Kxc4) 33... Re2+ $2 {[%emt 0:00:00][%mdl 8192] [#]} (33... Rc8 $11 {and Black stays safe.} 34. Kb1 Re8) 34. Kd3 $18 Rxf2 35. Kxc4 Rxb2 {[%emt 0:00:00][%mdl 32768] Weighted Error Value: White=0.12 (very precise) /Black=0.31.  Loses game:     	---       	Black=1      Mistake:       	White=1     	---        Inaccurate:     	White=4     	Black=3      OK:         	White=7     	Black=5      Best:        	White=2     	Black=5      Strong:       	---       	Black=2     . An unexpected result.} 1/2-1/2